Workbook

Sheet Instructions
B2: State of Georgia
B3: In Conjunction with NASPO ValuePoint
B4: Electronic Request for Proposals ("eRFP")
B5: eRFP (Event) Number: 41900-DCH0000136
B6: Event Name: Pharmacy Benefit Services
B7: Attachment V - Pharmacy Clinical Management Services Cost Worksheet
B9: Instructions for Supplier
B10: Suppliers are bidding on the Design, Development and Implementation (DDI), monthly Operations and Maintenance (O&M) costs, and additional program support the Supplier will charge to administer the Pharmacy Clinical Management Services Program as described in the eRFP. Please refer to the instructions below, Attachment A eRFP document "Section 5, Cost Proposal," Attachment C - Common Scope Requirements and Security Standards, and Attachment G - Pharmacy Clinical Management Services Scope of Work for details describing the scope of the Clinical Management Services to be provided before completing this Cost Worksheet.
B11: 1 | C11: Supplier shall provide firm/fixed pricing for the service(s) and deliverables for which a response is being submitted to as described in the eRFP.
B12: 2 | C12: Suppliers shall complete the Cost Proposal worksheet using the cells highlighted in yellow.
B13: 3 | C13: Suppliers shall not modify any cells in the spreadsheet other than those highlighted yellow. The other cells are fixed or will calculate automatically.
B14: 4 | C14: Suppliers shall insert 0 in any yellow highlighted cells that are not applicable or for which the proposed cost is zero ($0).
B15: 5 | C15: Suppliers shall not modify the formulas in the worksheets.
B16: 6 | C16: For evaluation purposes, the total cost will be determined by the value found in D14 which is comprised of the total DDI (Table A) and O&M (Table B) Costs over a period of ten (10) years.
B18: Instructions for Adjusting Costs One or More Years After the Effective Date of the Master Agreement
B20: For Participating Addenda signed one year or more years after the Effective Date of the Master Agreement, the cost will be adjusted using the Consumer Price Index Urban (CPI-U) to account for economic changes that may impact cost.
B23: CPI-U for United States Adjustment Factor Calculation:
B24: CPI-U Index for the month and year of the execution of a Participating Addendum
B25: Less the CPI-U Index for the month and year of the Effective Date of the Master Agreement
B26: Equals Index Point Change
B27: Divided by CPI-U Index B: C/B = D
B28: Result multiplied by 100: D*100 = E: Equals CPI-U Inflation Percentage
B30: Steps to Adjust Costs for CPI-U
B31: 1 | C31: Follow the link below to access the CPI-U data.
C32: https://www.bls.gov/cpi/tables/supplemental-files/home.htm
B33: 2 | C33: Select, download and save the file with the most recently published CPI-U data that is available for the month the Participating Addendum is signed. (Also find and select the CPI-U for when the Master Agreement was originally executed). Use the “All Items” CPI-U “Unadjusted indexes” values instead of the “Seasonally adjusted indexes” values.
B34: 3 | C34: Enter the CPI-U value from the previous step in field C53 "CPI-U for Participating Addendum Date."
B35: 4 | C35: Enter the CPI-U value for the month of the Effective Date of the Master Agreement in C52 "CPI-U for Master Agreement Date MM/DD/20YY."
B36: 5 | C36: The “CPI-U Inflation Percentage” will be calculated automatically based on the values from steps 3 and 4. This will also automatically update all the CPI-U Adjusted Price fields in the cost tables.
B37: 6 | C37: CPI-U Adjusted Prices will be subject to negotiation upon execution of a Participating Addendum.

Sheet Cost Worksheet
B2: State of Georgia
B3: In Conjunction with NASPO ValuePoint
B4: Electronic Request for Proposals ("eRFP")
B5: eRFP (Event) Number: 41900-DCH0000136
B6: Event Name: Pharmacy Benefit Services
B7: Attachment V - Pharmacy Clinical Management Services Cost Worksheet
B9: SUPPLIER LEGAL ENTITY NAME: | C9: NorthStar HealthCare Consulting
B10: SUPPLIER REPRESENTATIVE NAME: | C10: Emily Baker, Pharm.D., MBA, MHA
B11: SUPPLIER REPRESENTATIVE TITLE: | C11: President
B12: DATE: | C12: 2024-05-13
B14: TOTAL EVALUATION COST AMOUNT (Sum of Evaluation Costs Below): | D14: =+Y34+D25 -> $16,544,012.00
B16: Table A
B17: Instructions: Please enter the costs to implement your services and/or Solution.
B18: Service Design, Development, and Implementation (DDI) Cost
C19: Initial Cost | D19: CPI-U Adjusted Cost
B20: Project Planning and Startup | C20: $145,850.00 | D20: =+C20*$C$56 -> $145,850.00
B21: Design, Development, and Testing | C21: $131,350.00 | D21: =+C21*$C$56 -> $131,350.00
B22: Operational Readiness and Production Cutover | C22: $107,000.00 | D22: =+C22*$C$56 -> $107,000.00
B23: Training | C23: $25,000.00 | D23: =+C23*$C$56 -> $25,000.00
B24: Acceptance, Deployment | C24: $98,500.00 | D24: =+C24*$C$56 -> $98,500.00
B25: Total DDI Costs: | D25: =SUM(D20:D24) -> $507,700.00
B27: Table B
B28: Operations and Maintenance (O&M) | E28: Year 1 | G28: Year 2 | I28: Year 3 | K28: Year 4 | M28: Year 5 | O28: Year 6 | Q28: Year 7 | S28: Year 8 | U28: Year 9 | W28: Year 10 | Y28: 10-Year Total for Pharmacy Clinical Management Services O&M Administration | AA28: For Informational Purposes Only Annual Average Clinical Management Services Administration Cost
E29: Initial Rate | F29: CPI-U Adjusted Rate | G29: Initial Rate | H29: CPI-U Adjusted Rate | I29: Initial Rate | J29: CPI-U Adjusted Rate | K29: Initial Rate | L29: CPI-U Adjusted Rate | M29: Initial Rate | N29: CPI-U Adjusted Rate | O29: Initial Rate | P29: CPI-U Adjusted Rate | Q29: Initial Rate | R29: CPI-U Adjusted Rate | S29: Initial Rate | T29: CPI-U Adjusted Rate | U29: Initial Rate | V29: CPI-U Adjusted Rate | W29: Initial Rate | X29: CPI-U Adjusted Rate
B30: Monthly Administration Fee
B31: The monthly administration fee should include all the O&M costs to include, but not limited to the following: 1. State Advisory Board Support 2. Planning and Materials 3. Staffing 4. Utilization Management: Development and Maintenance of PA Criteria for PDL and PADL 5. Technology Services (e.g., Document Repository) (See Attachment G - Pharmacy Clinical Management Services Scope of Work)
B32: Total Monthly Cost | E32: $122,500 | F32: =E32*C56 -> $122,500 | G32: $110,085 | H32: =G32*C56 -> $110,085 | I32: =G32*1.05 -> $115,589 | J32: =I32*C56 -> $115,589 | K32: =I32*1.05 -> $121,369 | L32: =K32*C56 -> $121,369 | M32: =K32*1.05 -> $127,437 | N32: =M32*C56 -> $127,437 | O32: =M32*1.05 -> $133,809 | P32: =O32*C56 -> $133,809 | Q32: =O32*1.05 -> $140,499 | R32: =Q32*C56 -> $140,499 | S32: =Q32*1.05 -> $147,524 | T32: =S32*C56 -> $147,524 | U32: =S32*1.05 -> $154,901 | V32: =U32*C56 -> $154,901 | W32: =U32*1.05 -> $162,646 | X32: =W32*C56 -> $162,646
E33: X 12 | F33: months | G33: X 12 | H33: months | I33: X 12 | J33: months | K33: X 12 | L33: months | M33: X 12 | N33: months | O33: X 12 | P33: months | Q33: X 12 | R33: months | S33: X 12 | T33: months | U33: X 12 | V33: months | W33: X 12 | X33: months
B34: Total Period Cost | E34: =F32*E33 -> = $ 1,470,000 | G34: =H32*G33 -> = $ 1,321,020 | I34: =J32*I33 -> = $ 1,387,071 | K34: =L32*K33 -> = $ 1,456,425 | M34: =N32*M33 -> = $ 1,529,246 | O34: =P32*O33 -> = $ 1,605,708 | Q34: =R32*Q33 -> = $ 1,685,993 | S34: =T32*S33 -> = $ 1,770,293 | U34: =V32*U33 -> = $ 1,858,808 | W34: =X32*W33 -> = $ 1,951,748 | Y34: =SUM(E34:W34) -> = $ 16,036,312 | AA34: =Y34/10 -> = $ 1,603,631
B37: Table C
B38: Instructions: Complete the section below by entering the Hourly Rate in the yellow boxes for each identified Role. As may be requested by the State on a case by case basis and agreed upon by the Contractor, the Contractor will provide ad hoc services related to potential tasks as described below. Note: These charges will only be billed for project-related services not specified in the eRFP and requested by the State for such services in writing. The total cost for all State requested and approved projects shall not exceed the amount indicated by the State in its Participating Addendum. The proposed costs will not be evaluated as part of the total contract value.
A39: Staff Roles and Responsibilities | B39: Ad Hoc Professional Services | E39: Year 1 | G39: Year 2 | I39: Year 3 | K39: Year 4 | M39: Year 5 | O39: Year 6 | Q39: Year 7 | S39: Year 8 | U39: Year 9 | W39: Year 10 | Y39: 10-Year Average of Hourly Rates
B40: Role | C40: Potential Responsibilities | E40: Initial Hourly Rate | F40: CPI-U Adjusted Rate | G40: Initial Hourly Rate | H40: CPI-U Adjusted Rate | I40: Initial Hourly Rate | J40: CPI-U Adjusted Rate | K40: Initial Hourly Rate | L40: CPI-U Adjusted Rate | M40: Initial Hourly Rate | N40: CPI-U Adjusted Rate | O40: Initial Hourly Rate | P40: CPI-U Adjusted Rate | Q40: Initial Hourly Rate | R40: CPI-U Adjusted Rate | S40: Initial Hourly Rate | T40: CPI-U Adjusted Rate | U40: Initial Hourly Rate | V40: CPI-U Adjusted Rate | W40: Initial Hourly Rate | X40: CPI-U Adjusted Rate
B41: Clinical Pharmacist / Account Manager | C41: Provides clinical consulting services for special projects. | E41: $175.00 | F41: =MAX(ROUND(E41*$C$56,2),0) -> $175.00 | G41: =E41*1.05 -> $183.75 | H41: =MAX(ROUND(G41*$C$56,2),0) -> $183.75 | I41: =G41*1.05 -> $192.94 | J41: =MAX(ROUND(I41*$C$56,2),0) -> $192.94 | K41: =I41*1.05 -> $202.58 | L41: =MAX(ROUND(K41*$C$56,2),0) -> $202.58 | M41: =K41*1.05 -> $212.71 | N41: =MAX(ROUND(M41*$C$56,2),0) -> $212.71 | O41: =M41*1.05 -> $223.35 | P41: =MAX(ROUND(O41*$C$56,2),0) -> $223.35 | Q41: =O41*1.05 -> $234.52 | R41: =MAX(ROUND(Q41*$C$56,2),0) -> $234.52 | S41: =Q41*1.05 -> $246.24 | T41: =MAX(ROUND(S41*$C$56,2),0) -> $246.24 | U41: =S41*1.05 -> $258.55 | V41: =MAX(ROUND(U41*$C$56,2),0) -> $258.55 | W41: =U41*1.05 -> $271.48 | X41: =MAX(ROUND(W41*$C$56,2),0) -> $271.48 | Y41: =(F41+H41+J41+L41+N41+P41+R41+T41+V41+X41)/10 -> $220.11
B42: Business Analyst | C42: Evaluates business processes, anticipating requirements, uncovering areas for improvement, and developing and implementing Solutions. | E42: $100.00 | F42: =MAX(ROUND(E42*$C$56,2),0) -> $100.00 | G42: =E42*1.05 -> $105.00 | H42: =MAX(ROUND(G42*$C$56,2),0) -> $105.00 | I42: =G42*1.05 -> $110.25 | J42: =MAX(ROUND(I42*$C$56,2),0) -> $110.25 | K42: =I42*1.05 -> $115.76 | L42: =MAX(ROUND(K42*$C$56,2),0) -> $115.76 | M42: =K42*1.05 -> $121.55 | N42: =MAX(ROUND(M42*$C$56,2),0) -> $121.55 | O42: =M42*1.05 -> $127.63 | P42: =MAX(ROUND(O42*$C$56,2),0) -> $127.63 | Q42: =O42*1.05 -> $134.01 | R42: =MAX(ROUND(Q42*$C$56,2),0) -> $134.01 | S42: =Q42*1.05 -> $140.71 | T42: =MAX(ROUND(S42*$C$56,2),0) -> $140.71 | U42: =S42*1.05 -> $147.75 | V42: =MAX(ROUND(U42*$C$56,2),0) -> $147.75 | W42: =U42*1.05 -> $155.13 | X42: =MAX(ROUND(W42*$C$56,2),0) -> $155.13 | Y42: =(F42+H42+J42+L42+N42+P42+R42+T42+V42+X42)/10 -> $125.78
B43: Senior Developer | C43: Responsible for designing, testing, and implementing new and updated software programs. | E43: $162.50 | F43: =MAX(ROUND(E43*$C$56,2),0) -> $162.50 | G43: $170.63 | H43: =MAX(ROUND(G43*$C$56,2),0) -> $170.63 | I43: $179.16 | J43: =MAX(ROUND(I43*$C$56,2),0) -> $179.16 | K43: $188.11 | L43: =MAX(ROUND(K43*$C$56,2),0) -> $188.11 | M43: $197.52 | N43: =MAX(ROUND(M43*$C$56,2),0) -> $197.52 | O43: $207.40 | P43: =MAX(ROUND(O43*$C$56,2),0) -> $207.40 | Q43: $217.77 | R43: =MAX(ROUND(Q43*$C$56,2),0) -> $217.77 | S43: $228.65 | T43: =MAX(ROUND(S43*$C$56,2),0) -> $228.65 | U43: $240.09 | V43: =MAX(ROUND(U43*$C$56,2),0) -> $240.09 | W43: $252.09 | X43: =MAX(ROUND(W43*$C$56,2),0) -> $252.09 | Y43: =(F43+H43+J43+L43+N43+P43+R43+T43+V43+X43)/10 -> $204.39
B44: Developer | C44: Responsible for developing, coding, installing, and maintaining software systems. | E44: $137.50 | F44: =MAX(ROUND(E44*$C$56,2),0) -> $137.50 | G44: $144.38 | H44: =MAX(ROUND(G44*$C$56,2),0) -> $144.38 | I44: $151.59 | J44: =MAX(ROUND(I44*$C$56,2),0) -> $151.59 | K44: $159.17 | L44: =MAX(ROUND(K44*$C$56,2),0) -> $159.17 | M44: $167.13 | N44: =MAX(ROUND(M44*$C$56,2),0) -> $167.13 | O44: $175.49 | P44: =MAX(ROUND(O44*$C$56,2),0) -> $175.49 | Q44: $184.26 | R44: =MAX(ROUND(Q44*$C$56,2),0) -> $184.26 | S44: $193.48 | T44: =MAX(ROUND(S44*$C$56,2),0) -> $193.48 | U44: $203.15 | V44: =MAX(ROUND(U44*$C$56,2),0) -> $203.15 | W44: $213.31 | X44: =MAX(ROUND(W44*$C$56,2),0) -> $213.31 | Y44: =(F44+H44+J44+L44+N44+P44+R44+T44+V44+X44)/10 -> $172.95
B45: Quality assurance/Test | C45: Works with the development team to debug code, correct errors, and troubleshoot any issues with software code. | E45: $87.50 | F45: =MAX(ROUND(E45*$C$56,2),0) -> $87.50 | G45: $91.88 | H45: =MAX(ROUND(G45*$C$56,2),0) -> $91.88 | I45: $96.47 | J45: =MAX(ROUND(I45*$C$56,2),0) -> $96.47 | K45: $101.29 | L45: =MAX(ROUND(K45*$C$56,2),0) -> $101.29 | M45: $106.36 | N45: =MAX(ROUND(M45*$C$56,2),0) -> $106.36 | O45: $111.67 | P45: =MAX(ROUND(O45*$C$56,2),0) -> $111.67 | Q45: $117.26 | R45: =MAX(ROUND(Q45*$C$56,2),0) -> $117.26 | S45: $123.12 | T45: =MAX(ROUND(S45*$C$56,2),0) -> $123.12 | U45: $129.28 | V45: =MAX(ROUND(U45*$C$56,2),0) -> $129.28 | W45: $135.74 | X45: =MAX(ROUND(W45*$C$56,2),0) -> $135.74 | Y45: =(F45+H45+J45+L45+N45+P45+R45+T45+V45+X45)/10 -> $110.06
B46: Total Ad Hoc Professional Services Cost (Sum of 10-Year Average of Hourly Rates for all Identified Roles) | Y46: =SUM(Y41:Y45) -> $833.29
B50: Table D
B51: Consumer Price Index Urban (CPI-U) Adjustment:
B52: A. CPI-U for Master Agreement Date MM/DD/20YY: | C52: 0.000000
B53: B. CPI-U for Participating Addendum Date: | C53: 0.000000
B54: C. Index Point Change equals B minus A: | C54: =C53-C52 -> 0.000000
B55: D. Equals C divided by A: | C55: =IFERROR(C54/C52,0) -> 0.000000
B56: E. CPI-U Inflation Percentage equals B plus 1.00: | C56: =C55+1 -> 1.000000

Sheet Scoring Formula
B2: State of Georgia
B3: In Conjunction with NASPO ValuePoint
B4: Electronic Request for Proposals ("eRFP")
B5: eRFP (Event) Number: 41900-DCH0000136
B6: Event Name: Pharmacy Benefit Services
B7: Attachment V - Pharmacy Clinical Management Services Cost Worksheet
B9: Cost Scoring Formula
B12: The Supplier deemed to have the most competitive cost response overall, as determined by the Lead State, will receive the maximum score for the cost criteria. As a general rule, other Suppliers’ cost responses will receive a percentage of the maximum score based on the percentage differential between the most competitive cost proposal and the specific proposal in question. This cost scoring can be accomplished using the following formula:
B13: L/R x P = Z L = Price of the Supplier's response with the lowest cost. R = Total cost of the Proposal being ranked. P = Total points available for cost scoring. Z = Assigned Points.
B14: EXAMPLE - The Lead State receives responses from two Suppliers on an RFP. The RFP assigned 700 possible points for technical scores and 300 possible points for cost scores. Supplier A's cost proposal is $50,000. Supplier B's cost proposal is $55,000. As Supplier A offered the lowest cost, Supplier A receives 300 points. The issuing officer can calculate the number of cost points to assign to Supplier B's cost score by using the formula noted above. As shown below, Supplier B's total cost score is 272.7 points. L/R x P = Z ($50,000/$55,000) x 300 = Z .909 x 300 = Z 272.7 = Z
